bitfinex-derivatives/quotes_BTCF0:USTF0_20250911
["timestamp","ask_amount","ask_price","bid_price","bid_amount"]
[1757592772085,0.03602,114440.0,114430.0,0.22695814]
[1757592772383,0.02296,114440.0,114430.0,0.22695814]
[1757592772873,0.02296,114440.0,114430.0,0.30472283]
[1757592773068,0.03602,114440.0,114430.0,0.11039469]
[1757592773273,0.03602,114440.0,114430.0,0.20119376]
[1757592773473,0.03602,114440.0,114430.0,0.56199376]
[1757592773780,0.03602,114440.0,114430.0,0.47119469]
[1757592773971,0.03602,114440.0,114430.0,0.56199376]
[1757592774368,0.03602,114440.0,114430.0,0.20119376]
[1757592775377,0.03602,114440.0,114430.0,0.47119469]
[1757592775674,0.03602,114440.0,114430.0,0.20041376]
[1757592775874,0.03602,114440.0,114430.0,0.10961469]
[1757592776275,0.03602,114440.0,114430.0,0.12264907]
[1757592776877,0.03602,114440.0,114430.0,0.20041376]
[1757592777079,0.03602,114440.0,114430.0,0.10961469]
[1757592777572,0.03602,114440.0,114430.0,0.20041376]
[1757592777771,0.01306,114440.0,114430.0,0.90201283]
[1757592777974,0.0215,114440.0,114430.0,0.91474283]
[1757592778183,0.0215,114440.0,114430.0,1.03474283]
[1757592778380,1.0256545,114450.0,114440.0,0.03533]
[1757592778584,1.0256545,114450.0,114440.0,0.21692814]
[1757592778883,1.0387145,114450.0,114440.0,0.02212]
[1757592779084,1.0387145,114450.0,114440.0,0.11291907]
[1757592779280,1.0387145,114450.0,114440.0,0.02212]
[1757592779682,0.1049145,114450.0,114440.0,0.20371814]
[1757592779882,1.0401145,114450.0,114440.0,0.20371814]
[1757592780184,1.0401145,114450.0,114440.0,0.02212]
[1757592780389,0.03456,114440.0,114430.0,0.10861469]
[1757592780582,0.03456,114440.0,114430.0,0.12164907]
[1757592780889,0.03456,114440.0,114430.0,0.03085]
[1757592781082,1.3794145,114450.0,114440.0,0.01321]
[1757592781083,1.0401545,114450.0,114440.0,0.01321]
[1757592781385,0.0703545,114450.0,114440.0,0.83772814]
[1757592781588,0.0703545,114450.0,114440.0,1.16549283]
[1757592781886,1.0068745,114450.0,114440.0,1.03549283]
[1757592782078,0.93752,114450.0,114440.0,0.72389469]
[1757592782278,0.93752,114450.0,114440.0,1.02549283]
[1757592782478,0.93652,114450.0,114440.0,1.02549283]
[1757592782987,0.0215,114460.0,114450.0,0.03533]
[1757592783282,0.09118379,114460.0,114450.0,0.12612907]
[1757592783484,0.95854,114460.0,114450.0,0.03533]
[1757592783785,0.0215,114460.0,114450.0,0.18842983]
[1757592783980,0.95854,114460.0,114450.0,0.09763076]
[1757592784187,0.0225,114460.0,114450.0,0.29469283]
[1757592784381,0.0225,114460.0,114450.0,0.11309469]
[1757592784683,0.96034,114460.0,114450.0,0.23534117]
[1757592784882,0.96034,114460.0,114450.0,0.2223964]
[1757592785089,0.96134,114460.0,114450.0,0.65558244]
[1757592785291,0.96134,114460.0,114450.0,0.4739843]
[1757592785493,0.96134,114460.0,114450.0,0.90558244]
[1757592785494,0.002,114460.0,114450.0,0.90558244]
[1757592785681,0.002,114460.0,114450.0,0.95772814]
[1757592785881,0.0235,114460.0,114450.0,0.93694024]
[1757592786200,0.0235,114460.0,114450.0,0.99916025]
[1757592786375,0.002,114460.0,114450.0,0.99994815]
[1757592786688,0.002,114460.0,114450.0,1.01994815]
[1757592786884,0.002,114460.0,114450.0,0.88994815]
[1757592787076,0.002,114460.0,114450.0,0.81835001]
[1757592787282,4e-05,114470.0,114460.0,0.03533]
[1757592787491,4e-05,114470.0,114460.0,0.77773931]
[1757592787793,4e-05,114470.0,114460.0,0.5053421]
[1757592788086,0.02154,114470.0,114460.0,0.5053421]
[1757592788289,0.02154,114470.0,114460.0,0.47383449]
[1757592788481,4e-05,114470.0,114460.0,0.47383449]
[1757592788789,4e-05,114470.0,114460.0,0.65543263]
[1757592788984,0.00104,114470.0,114460.0,0.79416263]
[1757592789183,0.0356,114470.0,114460.0,0.10855449]
[1757592789388,0.97616,114470.0,114460.0,0.29015263]
[1757592789581,0.97616,114470.0,114460.0,0.66616263]
[1757592789888,0.97616,114470.0,114460.0,0.12476449]
[1757592789889,0.97516,114470.0,114460.0,0.12476449]
[1757592790491,0.97516,114470.0,114460.0,0.66716263]
[1757592790980,0.97516,114470.0,114460.0,0.58945814]
[1757592791180,0.97516,114470.0,114460.0,0.40786]
[1757592791380,0.9406,114470.0,114460.0,0.69945814]
[1757592791584,0.9406,114470.0,114460.0,0.77716263]
[1757592791783,0.9406,114470.0,114460.0,0.66716263]
[1757592792187,4e-05,114470.0,114460.0,0.58945814]
[1757592792388,0.02154,114470.0,114460.0,0.58945814]
[1757592792782,0.0346,114470.0,114460.0,0.57624814]
[1757592792982,0.0346,114470.0,114460.0,0.39465]
[1757592793293,0.0346,114470.0,114460.0,0.57624814]
[1757592794182,0.0346,114470.0,114460.0,0.63836893]
[1757592795493,0.02154,114470.0,114460.0,0.65157893]
[1757592795791,4e-05,114470.0,114460.0,0.58945814]
[1757592795992,4e-05,114470.0,114460.0,0.46998337]
[1757592796187,4e-05,114470.0,114460.0,0.69945814]
[1757592796392,0.02154,114470.0,114460.0,0.58945814]
[1757592796588,4e-05,114470.0,114460.0,0.40786]
[1757592797487,4e-05,114470.0,114460.0,1.52760091]
[1757592797688,4e-05,114470.0,114460.0,1.6053054]
[1757592798082,4e-05,114480.0,114460.0,1.6053054]
[1757592798282,4e-05,114480.0,114470.0,0.75491212]
[1757592798494,4e-05,114480.0,114470.0,1.18069079]
[1757592798686,4e-05,114480.0,114470.0,1.36528031]
[1757592798885,4e-05,114480.0,114470.0,1.37491212]
[1757592799388,4e-05,114480.0,114470.0,1.76087503]
[1757592799583,4e-05,114480.0,114470.0,1.76287503]
[1757592799780,0.01306,114510.0,114500.0,0.0873134]
[1757592799983,0.01306,114510.0,114500.0,0.76868873]
[1757592800192,0.01306,114510.0,114500.0,1.01868873]
[1757592800394,0.01306,114510.0,114500.0,1.29796284]
[1757592800690,0.01306,114520.0,114510.0,0.0873058]
[1757592800893,0.0131,114530.0,114520.0,0.0872982]
[1757592801099,0.0131,114530.0,114520.0,0.6580982]
[1757592801390,0.0131,114530.0,114520.0,0.71030353]
[1757592801596,0.0346,114530.0,114520.0,0.69466093]
[1757592801791,0.0346,114530.0,114520.0,0.42273511]
[1757592801991,0.0346,114530.0,114520.0,0.43837771]
[1757592802296,0.03591,114530.0,114520.0,0.3608]
[1757592802594,0.03623,114520.0,114510.0,0.43837771]
[1757592802890,0.03623,114520.0,114510.0,0.55007592]
[1757592803089,0.03623,114520.0,114510.0,0.67746054]
[1757592803394,0.28623,114520.0,114510.0,0.3608]
[1757592803694,0.28623,114520.0,114510.0,0.42366888]
[1757592803897,0.28623,114520.0,114510.0,0.5510535]
[1757592804788,1.23747,114520.0,114510.0,0.5510535]
[1757592805092,1.66698158,114520.0,114510.0,0.001]
[1757592805283,1.66698158,114520.0,114510.0,0.003]
[1757592805482,1.7943662,114520.0,114510.0,0.002]
[1757592805690,0.03623,114490.0,114480.0,0.62763121]
[1757592805888,0.03623,114490.0,114480.0,0.06186888]
[1757592805889,0.98831,114490.0,114480.0,0.06186888]
[1757592806092,0.03623,114480.0,114470.0,0.42269543]
[1757592806297,0.39703,114480.0,114470.0,0.06189543]
[1757592806792,1.35163,114480.0,114470.0,0.12738462]
[1757592807097,0.03623,114470.0,114460.0,0.19801005]
[1757592807596,0.03623,114470.0,114460.0,0.07062543]
[1757592807895,0.64703,114470.0,114460.0,0.00873]
[1757592808082,0.39703,114470.0,114460.0,0.13611462]
[1757592808283,0.01342,114470.0,114460.0,0.49691462]
[1757592808487,0.01342,114470.0,114460.0,1.00615545]
[1757592808682,0.01342,114470.0,114460.0,0.91183773]
[1757592808883,0.03623,114470.0,114460.0,0.82449233]
[1757592809395,0.01342,114470.0,114460.0,0.75291462]
[1757592809792,0.03623,114470.0,114460.0,0.91783763]
[1757592809996,0.01342,114470.0,114460.0,0.83049233]
[1757592810189,0.01342,114470.0,114460.0,1.04783763]
[1757592810393,0.0019919,114470.0,114460.0,1.58522225]
[1757592810592,0.0019919,114470.0,114460.0,1.61685664]
[1757592810992,0.0019919,114470.0,114460.0,1.38025992]
[1757592811394,0.0019919,114470.0,114460.0,1.48947202]
[1757592811596,0.0019919,114470.0,114460.0,1.3620874]
[1757592811894,0.0019919,114470.0,114460.0,1.38025992]
[1757592812093,0.0019919,114470.0,114460.0,1.0028753]
[1757592812286,0.0019919,114470.0,114460.0,1.1120876]
[1757592812490,0.0019919,114470.0,114460.0,1.23947222]
[1757592812689,0.0019919,114470.0,114460.0,0.92947222]
[1757592812996,0.0248019,114470.0,114460.0,0.84212672]
[1757592813292,0.0248019,114470.0,114460.0,0.68964379]
[1757592813498,0.0248019,114470.0,114460.0,0.58043169]
[1757592813789,0.0248019,114470.0,114460.0,0.50291462]
[1757592813990,0.0248019,114470.0,114460.0,0.51291462]
[1757592814193,0.0248019,114470.0,114460.0,0.38553]
[1757592814394,0.0248019,114470.0,114460.0,0.51291462]
[1757592814794,0.0248019,114470.0,114460.0,0.38553]
[1757592815096,0.0248019,114470.0,114460.0,0.51291462]
[1757592815598,0.0248019,114470.0,114460.0,0.59043169]
[1757592815794,0.0248019,114470.0,114460.0,0.51291462]
[1757592815985,0.40218652,114470.0,114460.0,0.09224707]
[1757592816187,0.76298652,114470.0,114460.0,0.07679148]
[1757592816492,0.6356019,114470.0,114460.0,0.01473]
[1757592816696,0.76298652,114470.0,114460.0,0.01473]
[1757592816891,0.6356019,114470.0,114460.0,0.01473]
[1757592817093,0.76298652,114470.0,114460.0,0.01473]
[1757592817288,0.76298652,114470.0,114450.0,0.06206148]
[1757592817487,0.76298652,114470.0,114440.0,0.06206148]
[1757592817488,0.77441462,114460.0,114440.0,0.06206148]
[1757592817697,1.48797462,114450.0,114440.0,0.06206148]
[1757592817899,0.03623,114440.0,114430.0,0.06209141]
[1757592818193,0.77441462,114440.0,114430.0,0.06209141]
[1757592818396,0.03623,114430.0,114420.0,0.06209141]
[1757592818599,1.37394382,114430.0,114420.0,0.06209141]
[1757592818794,1.49065462,114430.0,114420.0,0.06209141]
[1757592818995,0.03623,114420.0,114410.0,0.06209141]
[1757592819393,0.39703,114420.0,114410.0,0.06209141]
[1757592819592,1.36359,114420.0,114410.0,0.06209141]
[1757592819792,1.74097462,114420.0,114410.0,0.06209141]
[1757592819988,1.61359,114420.0,114410.0,0.06209141]
[1757592820194,0.03623,114410.0,114400.0,0.55027603]
[1757592820390,0.39703,114410.0,114400.0,0.06209141]
[1757592820596,0.39703,114410.0,114400.0,0.3608]
[1757592820597,0.82039,114410.0,114400.0,0.3608]
[1757592820796,0.82039,114410.0,114400.0,0.12738462]
[1757592821102,0.03623,114400.0,114390.0,0.42289141]
[1757592821502,0.84855,114400.0,114390.0,0.3608]
[1757592821695,0.84855,114400.0,114390.0,0.42289141]
[1757592821895,0.84855,114400.0,114390.0,0.55027603]
[1757592822095,0.03623,114400.0,114390.0,0.48818462]
[1757592822397,1.00351,114400.0,114390.0,0.42289141]
[1757592822596,1.00351,114400.0,114390.0,0.55427603]
[1757592822798,0.03623,114400.0,114390.0,0.55727603]
[1757592823000,0.84191,114400.0,114390.0,0.55727603]
[1757592823199,0.03623,114400.0,114390.0,0.62256924]
[1757592823399,0.03623,114400.0,114390.0,0.68466065]
[1757592824197,0.03623,114400.0,114390.0,0.3678]
[1757592824396,0.01342,114400.0,114390.0,0.51729031]
[1757592824696,0.03623,114400.0,114390.0,0.3678]
[1757592824897,0.03623,114400.0,114390.0,0.62256924]
[1757592825102,0.03623,114400.0,114390.0,0.3678]
[1757592825301,0.03623,114400.0,114390.0,0.62256924]
[1757592825502,0.03623,114400.0,114390.0,0.3678]
[1757592825903,0.03623,114400.0,114390.0,0.49518462]
[1757592826409,0.03623,114400.0,114390.0,0.3678]
[1757592826704,0.03623,114400.0,114390.0,0.49518462]
[1757592827803,0.03623,114400.0,114390.0,0.3678]
[1757592828103,0.03623,114400.0,114390.0,0.007]
[1757592828703,0.03623,114400.0,114390.0,0.13438462]
[1757592828900,0.03623,114400.0,114390.0,0.007]
[1757592829204,0.77441462,114400.0,114390.0,0.007]
[1757592829795,0.03623,114390.0,114380.0,0.00874]
[1757592830004,0.03623,114360.0,114350.0,0.3608]
[1757592830804,0.03623,114360.0,114350.0,0.48818462]
[1757592831000,0.03623,114360.0,114350.0,0.3608]
[1757592831197,0.03623,114350.0,114340.0,0.36954]
[1757592831811,1.00191,114350.0,114340.0,0.36954]
[1757592832009,1.12929462,114350.0,114340.0,0.00874]
[1757592832305,1.74009462,114350.0,114340.0,0.00874]
[1757592832702,0.03515,114310.0,114290.0,0.3608]
[1757592832902,0.03515,114280.0,114270.0,0.3608]
[1757592833101,0.01285,114280.0,114270.0,1.07556924]
[1757592833307,0.01285,114280.0,114270.0,1.16305994]
[1757592833511,0.01285,114300.0,114280.0,0.087483]
[1757592833710,0.01285,114300.0,114290.0,0.61556924]
[1757592833906,0.01285,114300.0,114290.0,1.05818462]
[1757592834210,0.01285,114300.0,114290.0,1.84384464]
[1757592834409,0.03348995,114320.0,114300.0,0.0874677]
[1757592834609,0.03348995,114320.0,114310.0,0.84898462]
[1757592835612,0.01285,114320.0,114310.0,1.09898462]
[1757592836414,0.01285,114320.0,114300.0,0.12738462]
[1757592836415,0.01285,114320.0,114300.0,0.3608]
[1757592836610,0.01285,114310.0,114300.0,0.3608]
[1757592836805,0.03515,114310.0,114300.0,0.3608]
[1757592837206,0.01285,114310.0,114300.0,0.3608]
[1757592837506,0.01285,114320.0,114300.0,0.8182675]
[1757592837705,0.01285,114320.0,114310.0,0.48818462]
[1757592837909,0.03515,114320.0,114310.0,0.48818462]
[1757592838111,0.03515,114320.0,114310.0,0.3608]
[1757592838406,0.03515,114320.0,114310.0,0.48818462]
[1757592838812,0.03515,114320.0,114310.0,0.3608]
[1757592839111,0.03515,114320.0,114310.0,0.48818462]
[1757592839311,0.03515,114320.0,114310.0,0.3608]
[1757592839506,0.03515,114320.0,114310.0,0.48918462]
[1757592840604,0.77333462,114320.0,114310.0,0.001]
[1757592840808,0.03515,114290.0,114280.0,0.3608]
[1757592841012,0.03515,114270.0,114260.0,0.3608]
[1757592841313,0.03515,114270.0,114250.0,0.3608]
[1757592841314,0.03515,114260.0,114250.0,0.48818462]
[1757592841710,0.01285,114260.0,114250.0,0.48818462]
[1757592841913,0.01285,114270.0,114250.0,1.09569272]
[1757592842109,0.01285,114270.0,114260.0,0.48818462]
[1757592842411,0.01285,114280.0,114260.0,0.95306964]
[1757592842614,0.01285,114280.0,114270.0,0.61556924]
[1757592842816,0.03515,114280.0,114270.0,0.48818462]
[1757592843013,0.03515,114280.0,114270.0,0.3608]
[1757592843816,0.03515,114280.0,114270.0,0.48918462]
[1757592844215,0.03515,114280.0,114270.0,0.3618]
[1757592844524,0.03515,114280.0,114270.0,0.48918462]
[1757592845607,0.01385,114280.0,114270.0,0.70306194]
[1757592845922,0.01385,114280.0,114270.0,0.6982927]
[1757592846120,0.003,114280.0,114270.0,1.52306194]
[1757592846309,0.03310597,114300.0,114280.0,0.087481]
[1757592846508,0.05540597,114300.0,114290.0,0.3608]
[1757592846819,0.05540597,114300.0,114290.0,0.48818462]
[1757592847418,0.05540597,114300.0,114290.0,0.3608]
[1757592847715,0.05540597,114300.0,114290.0,0.48818462]
[1757592848116,0.03310597,114300.0,114290.0,1.45646202]
[1757592848520,0.03310597,114300.0,114290.0,0.8090774]
[1757592848724,0.03310597,114300.0,114290.0,0.93646202]
[1757592848916,0.03310597,114300.0,114290.0,1.18646202]
[1757592849110,0.01285,114310.0,114300.0,0.0874698]
[1757592849311,0.01285,114310.0,114300.0,1.29303904]
[1757592849516,0.01285,114310.0,114300.0,0.70303904]
[1757592850121,0.01285,114310.0,114300.0,0.95303904]
[1757592850920,0.03515,114310.0,114300.0,0.48818462]
[1757592852923,0.03515,114310.0,114300.0,0.3608]
[1757592853225,0.03515,114310.0,114300.0,0.48818462]
[1757592854019,0.03515,114310.0,114300.0,0.3608]
[1757592854314,0.03515,114310.0,114300.0,0.48818462]
[1757592854825,0.03515,114310.0,114300.0,0.4482698]
[1757592854826,0.01285,114310.0,114300.0,0.4482698]
[1757592855028,0.01285,114310.0,114300.0,0.84403904]
[1757592855227,0.01285,114310.0,114300.0,0.89613045]
[1757592855429,0.01285,114310.0,114300.0,0.4492698]
[1757592855622,0.01285,114310.0,114300.0,0.70403904]
[1757592855823,0.01285,114310.0,114300.0,0.3618]
[1757592856129,0.01285,114310.0,114300.0,0.51236121]
[1757592856322,0.01285,114310.0,114300.0,0.76713045]
[1757592856529,0.01285,114310.0,114300.0,0.51236121]
[1757592856719,0.03515,114310.0,114300.0,0.42489141]
[1757592856919,0.28515,114310.0,114300.0,0.3628]
[1757592857624,0.28515,114310.0,114300.0,0.49018462]
[1757592858128,0.28515,114310.0,114300.0,0.55227603]
[1757592858731,0.03515,114310.0,114300.0,0.55227603]
[1757592859131,0.01285,114310.0,114300.0,0.70503904]
[1757592859330,0.01285,114310.0,114300.0,0.4502698]
[1757592859532,0.03515,114310.0,114300.0,0.3628]
[1757592860124,0.03515,114310.0,114300.0,0.56770169]
[1757592860330,0.03515,114310.0,114300.0,0.44031707]
[1757592860723,0.03515,114310.0,114300.0,0.55212899]
[1757592861227,0.03515,114310.0,114300.0,0.48982135]
[1757592861429,0.01285,114310.0,114300.0,0.48982135]
[1757592861831,0.01285,114310.0,114300.0,0.57729105]
[1757592862032,0.01285,114310.0,114300.0,0.52778677]
[1757592862231,0.01285,114310.0,114300.0,0.71717452]
[1757592862535,0.01285,114310.0,114300.0,0.4251664]
[1757592862536,0.03573,114310.0,114300.0,0.4251664]
[1757592862739,0.03573,114310.0,114300.0,0.55218775]
[1757592863432,0.03573,114310.0,114300.0,0.4251664]
[1757592863635,0.03573,114310.0,114300.0,0.3628]
[1757592863824,0.03573,114310.0,114300.0,0.44031707]
[1757592864733,0.03573,114310.0,114300.0,0.56733842]
[1757592865134,0.03573,114310.0,114300.0,0.44031707]
[1757592865335,0.03573,114310.0,114300.0,0.07951707]
[1757592865534,0.01285,114310.0,114300.0,1.16182777]
[1757592865741,0.01285,114310.0,114300.0,1.45650145]
[1757592866039,0.01285,114320.0,114310.0,0.0874603]
[1757592866236,0.01285,114320.0,114310.0,0.76322398]
[1757592866938,0.03573,114320.0,114310.0,0.56576368]
[1757592867140,0.01285,114320.0,114310.0,0.65322388]
[1757592867341,0.01285,114330.0,114310.0,1.32527685]
[1757592867533,0.03573,114330.0,114310.0,0.4231368]
[1757592867735,0.03661,114320.0,114310.0,0.3608]
[1757592868440,0.28661,114320.0,114310.0,0.48782135]
[1757592868641,0.28661,114320.0,114310.0,0.55015815]
[1757592868843,0.64741,114320.0,114310.0,0.07790999]
[1757592869043,0.28661,114320.0,114310.0,0.48782135]
[1757592869230,0.01473,114320.0,114310.0,0.48782135]
[1757592869435,0.01473,114320.0,114310.0,0.43870999]
[1757592869632,0.01473,114320.0,114310.0,0.56573134]
[1757592870339,0.01473,114320.0,114310.0,0.43870999]
[1757592870542,0.01473,114320.0,114310.0,1.47319154]
[1757592870845,0.001,114320.0,114310.0,1.43528155]
[1757592871046,0.001,114320.0,114310.0,1.04449365]
[1757592871238,0.001,114320.0,114310.0,1.05449365]
[1757592871548,0.001,114320.0,114310.0,0.93449365]
[1757592871735,0.01285,114340.0,114320.0,0.0874478]
[1757592871936,0.01285,114340.0,114330.0,0.56574618]
[1757592872241,0.01285,114340.0,114330.0,1.01399108]
[1757592872441,0.01285,114340.0,114330.0,0.93606625]
[1757592872835,0.01585,114340.0,114330.0,0.93606625]
[1757592873243,0.01785,114340.0,114330.0,0.84862135]
[1757592873942,0.04073,114340.0,114330.0,0.84862135]
[1757592874441,0.04073,114340.0,114330.0,0.3608]
[1757592874640,0.04073,114340.0,114330.0,0.06235311]
[1757592874840,0.04073,114340.0,114330.0,0.18937446]
[1757592875246,0.04073,114340.0,114330.0,0.12702135]
[1757592875945,0.04073,114340.0,114330.0,0.20499034]
[1757592876649,0.04073,114340.0,114320.0,0.52622049]
[1757592876840,0.04073,114340.0,114330.0,0.12702135]
[1757592877040,0.04073,114340.0,114330.0,0.48782135]
[1757592877243,0.04073,114340.0,114330.0,0.3608]
[1757592877444,0.04073,114340.0,114330.0,0.56579034]
[1757592878149,0.04073,114340.0,114330.0,0.43876899]
[1757592878350,0.04073,114340.0,114330.0,0.56579034]
[1757592878946,0.04073,114340.0,114330.0,0.48782135]
[1757592879142,0.04073,114340.0,114330.0,0.56579034]
[1757592879342,0.04073,114340.0,114330.0,0.48782135]
[1757592880052,0.04073,114340.0,114330.0,0.3608]
[1757592880255,0.04073,114340.0,114330.0,0.48782135]
[1757592881956,0.04073,114340.0,114330.0,0.42316577]
[1757592882146,0.04073,114340.0,114330.0,0.55018712]
[1757592882452,0.04073,114340.0,114330.0,0.43190577]
[1757592882853,0.04073,114340.0,114330.0,0.36954]
[1757592883151,0.04073,114340.0,114330.0,0.00874]
[1757592883351,0.04073,114340.0,114330.0,0.08670899]
[1757592883546,0.04073,114340.0,114330.0,0.21373034]
[1757592883752,0.01785,114340.0,114330.0,0.57453034]
[1757592884251,0.04073,114340.0,114330.0,0.60565612]
[1757592884456,0.04073,114340.0,114330.0,0.47863477]
[1757592884650,0.04073,114340.0,114330.0,0.49656135]
[1757592884850,0.04073,114340.0,114330.0,0.13576135]
[1757592885355,0.04073,114340.0,114330.0,0.21373169]
[1757592885656,0.04073,114340.0,114330.0,0.08671034]
[1757592886358,0.04073,114340.0,114330.0,0.00874]
[1757592886559,0.04073,114340.0,114330.0,0.13576135]
[1757592886759,0.04073,114340.0,114330.0,0.00874]
[1757592886961,0.04073,114340.0,114330.0,0.21373169]
[1757592887161,0.04073,114340.0,114330.0,0.13576135]
[1757592887553,0.04073,114340.0,114330.0,0.11783477]
[1757592887858,0.04073,114340.0,114330.0,0.24485612]
[1757592888252,0.04073,114340.0,114330.0,0.13576135]
[1757592888946,0.04073,114340.0,114330.0,0.00874]
[1757592889154,0.04073,114340.0,114330.0,0.13576135]
[1757592889549,0.04073,114340.0,114330.0,0.00874]
[1757592889753,0.04073,114340.0,114330.0,0.13576135]
[1757592889952,0.01785,114340.0,114330.0,0.49656135]
[1757592890356,0.01785,114340.0,114330.0,0.60565612]
[1757592890760,0.04073,114340.0,114330.0,0.60565612]
[1757592891960,0.01393,114310.0,114300.0,0.51853927]
[1757592892163,0.02377611,114310.0,114300.0,0.51853927]
[1757592892467,0.02377611,114310.0,114300.0,0.15773927]
[1757592892856,0.03719,114300.0,114290.0,0.48782135]
[1757592893261,0.03719,114290.0,114280.0,0.51853927]
[1757592893459,0.03719,114290.0,114280.0,0.64556062]
[1757592893655,0.03719,114290.0,114280.0,0.48782135]
[1757592893854,0.03719,114290.0,114280.0,0.07808668]
[1757592894159,0.03719,114290.0,114270.0,0.64556062]
[1757592894364,0.03719,114280.0,114270.0,0.66556062]
[1757592894757,0.01393,114280.0,114270.0,0.66556062]
[1757592895067,0.01393,114300.0,114280.0,0.0874829]
[1757592895266,0.01393,114300.0,114290.0,0.48782135]
[1757592895665,0.01393,114300.0,114290.0,0.65331351]
[1757592895969,0.01393,114300.0,114290.0,0.48782135]
[1757592896468,0.01393,114300.0,114290.0,0.56781232]
[1757592896869,0.01393,114300.0,114290.0,0.57181232]
[1757592897071,0.03719,114300.0,114290.0,0.57181232]
[1757592897265,0.28719,114300.0,114290.0,0.44479097]
[1757592897463,0.28719,114300.0,114290.0,0.08399097]
[1757592897663,0.28719,114300.0,114290.0,0.006]
[1757592898968,0.26393,114300.0,114290.0,0.21101232]
[1757592899164,0.00051611,114310.0,114290.0,1.36129345]
[1757592899368,0.00051611,114310.0,114300.0,0.57529025]
[1757592899570,0.00051611,114310.0,114300.0,0.48782135]
[1757592899768,0.00051611,114310.0,114300.0,0.68529015]
[1757592899967,0.00051611,114310.0,114300.0,0.68437565]
[1757592900665,0.02377611,114310.0,114300.0,0.4698855]
[1757592900864,0.02377611,114310.0,114300.0,0.59690685]
[1757592901467,0.02377611,114310.0,114300.0,0.1100855]
[1757592901969,0.02377611,114310.0,114300.0,0.12802135]
[1757592902266,0.27377611,114310.0,114300.0,0.08192255]
[1757592902462,0.63457611,114310.0,114300.0,0.08192255]
[1757592902658,0.27377611,114310.0,114300.0,0.2089439]
[1757592902866,0.27377611,114310.0,114300.0,0.5697439]
[1757592903067,0.27377611,114310.0,114300.0,0.44272255]
[1757592903267,0.00051611,114310.0,114300.0,0.6572128]
[1757592903468,0.00051611,114310.0,114300.0,0.5603544]
[1757592903772,0.00051611,114310.0,114300.0,0.68737575]
[1757592904575,0.00051611,114310.0,114300.0,0.59890685]
[1757592905474,3.472e-05,114310.0,114300.0,0.59890685]
[1757592906282,3.472e-05,114310.0,114300.0,0.48982135]
[1757592906871,0.02329472,114310.0,114300.0,0.59890685]
[1757592908180,0.02329472,114310.0,114300.0,0.4718855]
[1757592908382,0.02329472,114310.0,114300.0,0.1110855]
[1757592908773,0.02329472,114310.0,114300.0,0.002]
[1757592909082,0.02329472,114310.0,114300.0,0.1110855]
[1757592909475,0.02329472,114310.0,114300.0,0.18902584]
[1757592909674,0.27329472,114310.0,114300.0,0.002]
[1757592909985,0.27329472,114310.0,114300.0,0.1110855]
[1757592910283,0.76111607,114310.0,114300.0,0.18904338]
[1757592910473,0.76111607,114310.0,114300.0,0.07995788]
[1757592911182,0.76111607,114310.0,114300.0,0.06438235]
[1757592911981,0.63409472,114310.0,114300.0,0.06438235]
[1757592913184,0.76111607,114310.0,114300.0,0.06438235]
[1757592913384,0.76111607,114310.0,114300.0,0.02938235]
[1757592913679,0.76111607,114310.0,114300.0,2.35e-06]
[1757592914184,0.03719,114300.0,114290.0,0.00874]
[1757592914384,0.39799,114300.0,114290.0,0.00874]
[1757592914780,0.39799,114300.0,114290.0,0.02988]
[1757592914979,0.39799,114300.0,114290.0,0.00874]
[1757592915501,0.52501135,114300.0,114290.0,0.01174]
[1757592915692,0.77501135,114300.0,114290.0,0.01174]
[1757592916388,0.84466676,114300.0,114290.0,0.01174]
[1757592916908,0.03719,114280.0,114270.0,0.07795788]
[1757592917105,0.39799,114280.0,114270.0,0.07795788]
[1757592917804,0.39799,114280.0,114260.0,0.07795788]
[1757592918099,0.03719,114270.0,114260.0,0.10371788]
[1757592918601,0.03719,114270.0,114260.0,0.23073923]
[1757592918897,0.03719,114270.0,114260.0,0.10671788]
[1757592919301,0.03719,114270.0,114260.0,0.23373923]
[1757592919795,0.03719,114270.0,114260.0,0.10371788]
[1757592919997,0.03719,114270.0,114260.0,0.23473923]
[1757592920190,0.03719,114270.0,114260.0,0.10771788]
[1757592920393,0.03719,114270.0,114260.0,0.23569288]
[1757592920599,0.03719,114270.0,114260.0,0.157735]
[1757592920796,0.03719,114270.0,114260.0,0.159735]
[1757592921096,0.03719,114270.0,114260.0,0.1408455]
[1757592921296,0.03719,114270.0,114260.0,0.2688205]
[1757592921499,0.03719,114270.0,114260.0,0.1388455]
[1757592921802,0.39799,114270.0,114260.0,0.03276]
[1757592922393,0.525965,114270.0,114260.0,0.03276]
[1757592923089,0.4078045,114270.0,114260.0,0.03276]
[1757592923491,0.4078045,114270.0,114260.0,0.01162]
[1757592923492,0.5357795,114270.0,114260.0,0.01162]
[1757592923692,0.5357795,114270.0,114260.0,0.07404129]
[1757592923893,0.9137545,114270.0,114260.0,0.05466443]
[1757592924096,0.00913,114250.0,114220.0,0.1224255]
[1757592924295,0.00913,114230.0,114220.0,0.1446055]
[1757592924499,0.36993,114250.0,114240.0,0.03552]
[1757592924892,0.36993,114250.0,114240.0,0.163495]
[1757592925294,0.37193,114250.0,114240.0,0.03552]
[1757592925495,0.37193,114250.0,114240.0,0.163495]
[1757592925713,0.37093,114250.0,114240.0,0.163495]
[1757592925900,0.37193,114250.0,114240.0,0.03552]
[1757592926205,0.37193,114250.0,114240.0,0.163495]
[1757592926507,0.37193,114250.0,114240.0,0.03552]
[1757592927203,0.62193,114250.0,114240.0,0.03552]
[1757592927506,0.62093,114250.0,114240.0,0.01334]
[1757592927708,0.62393,114250.0,114240.0,0.01334]
[1757592928400,0.62493,114250.0,114240.0,0.01334]
[1757592928598,0.752905,114250.0,114240.0,0.01334]
[1757592929096,0.752905,114250.0,114230.0,0.141315]
[1757592929297,0.36993,114240.0,114230.0,0.03552]
[1757592930107,0.36993,114240.0,114230.0,0.163495]
[1757592930703,1.30637,114240.0,114230.0,0.163495]
[1757592930912,1.30637,114240.0,114230.0,0.03552]
[1757592931101,0.37193,114240.0,114230.0,0.03552]
[1757592931411,1.30517,114240.0,114230.0,0.163495]
[1757592931803,1.30545,114240.0,114230.0,0.163495]
[1757592932002,0.37293,114240.0,114230.0,0.03552]